Cogmind - Beta 11 X8 *** ADVENTURER MODE // 2021.11.11 @ 21:58:25 Player: ZEROAFFEX Result: Self-destructed Performance ------------- Evolutions (0) 0 Regions Visited (4) 800 Robots Destroyed (28) 140 Value Destroyed (578) 578 Prototype IDs (0) 0 Alien Tech Used (0) 0 Bonus (102) 102 TOTAL SCORE: 1620 Bonus ------- Follower Combat Kills 120 Friendly Fire -18 Cogmind --------- Core Integrity 56/250 Matter 253/300 Energy 265/265 System Corruption 0% Temperature Cool (0) Movement Rolling (135) Ox3 Location -9/Mines Parts ------- > --- POWER (1) -------- Improved Ion Engine > --- PROPULSION (2) --- Armored Wheel Armored Wheel > --- UTILITY (2) ------ Improved Heat Sink Huge Storage Unit > --- WEAPON (2) ------- Assault Rifle Mini Grenade Launcher > --- INVENTORY (25) --- Light Nuclear Core Light Nuclear Core Light Treads Light Treads Wheel Wheel Wheel Armored Wheel Armored Wheel High-capacity Battery (250) Large Matter Pod (150) Improved Terrain Scanner Transport Network Coupler Targeting Computer Targeting Computer Makeshift Transmission Jammer Propulsion Shielding Light Armor Plating Beam Rifle Beam Rifle Beam Rifle Beam Rifle Gauss Rifle Datajack Makeshift Axe Peak State ------------ > --- POWER ------------ Improved Ion Engine > --- PROPULSION ------- Armored Wheel Armored Wheel > --- UTILITY ---------- Improved Heat Sink Huge Storage Unit > --- WEAPON ----------- Assault Rifle Makeshift Axe > --- INVENTORY -------- Ion Engine Light Nuclear Core Light Treads Light Treads Wheel Wheel Wheel Armored Wheel Armored Wheel High-capacity Battery Large Matter Pod Improved Terrain Scanner Transport Network Coupler Targeting Computer Targeting Computer Makeshift Transmission Jammer Propulsion Shielding Light Armor Plating Beam Rifle Beam Rifle Beam Rifle Beam Rifle Gauss Rifle Mini Grenade Launcher Datajack [Rating: 19] Favorites ----------- Power Improved Ion Engine Engine Improved Ion Engine Propulsion Armored Wheel Wheel Armored Wheel Utility Huge Storage Unit Device Improved Heat Sink Storage Huge Storage Unit Weapon Assault Rifle Energy Gun Beam Rifle Ballistic Gun Assault Rifle Launcher Mini Grenade Launcher Special Weapon Mining Laser Slashing Weapon Makeshift Axe Special Melee Weapon Datajack Build | -11 -10 -10 -10 -9 ------- Run | Scr Mat Min Exi Min Slots Evolved . | . . . . . Power . | . . . . . Propulsion . | . . . . . Utility . | . . . . . Weapon . | . . . . . Parts Attached 24 | 6 13 1 3 1 Power 3 | . 2 1 . . Engine 3 | . 2 1 . . Core . | . . . . . Reactor . | . . . . . Propulsion 4 | 2 2 . . . Treads . | . . . . . Leg . | . . . . . Wheel 4 | 2 2 . . . Hover . | . . . . . Flight . | . . . . . Utility 5 | 2 3 . . . Device 2 | 1 1 . . . Storage 3 | 1 2 . . . Processor . | . . . . . Hackware . | . . . . . Protection . | . . . . . Artifact . | . . . . . Weapon 12 | 2 6 . 3 1 Energy Gun 4 | 1 3 . . . Energy Cannon . | . . . . . Ballistic Gun 3 | 1 1 . 1 . Ballistic Cannon . | . . . . . Launcher 2 | . . . 1 1 Special Weapon 1 | . 1 . . . Impact Weapon . | . . . . . Slashing Weapon 1 | . . . 1 . Piercing Weapon . | . . . . . Special Melee Weapon 1 | . 1 . . . Unidentified Prototypes . | . . . . . Parts Lost . | . . . . . Power . | . . . . . Propulsion . | . . . . . Utility . | . . . . . Weapon . | . . . . . Highest Loss Streak . | . . . . . Average Slot Usage (%) 100 | . 100 100 100 100 Engine 14 | . 14 14 14 14 Wheel 28 | . 28 28 28 28 Device 14 | . 14 14 14 14 Storage 14 | . 14 14 14 14 Energy Gun 11 | . 12 14 9 . Ballistic Gun 14 | . 14 14 14 14 Slashing Weapon 1 | . . . 4 8 Naked Turns . | . . . . . Heaviest Build 93 | 9 91 93 93 93 Greatest Support 24 | 20 24 24 24 24 Greatest Overweight (x) 3 | 1 3 3 3 3 Average Overweight (x) 2 | . 1 3 3 3 Largest Inventory Capacity 25 | 8 25 25 25 25 Average Capacity 23 | 7 20 25 25 25 Most Carried 25 | 8 17 24 25 25 Average Carried 19 | 4 14 21 24 25 Final Capacity 25 | 8 25 25 25 25 Final Carried 25 | 8 17 24 25 25 Class Distribution -------------------- 100% | Mutant Dominant Class ---------------- Mutant | -10/Materials Mutant | -10/Mines Mutant | -10/Exiles Mutant | -9/Mines Resources | -11 -10 -10 -10 -9 ----------- Run | Scr Mat Min Exi Min Matter Collected 737 | 269 345 57 28 38 Remotely . | . . . . . Salvage Created 996 | 160 452 174 184 26 Parts 60 | 14 22 10 9 5 Haulers Intercepted 1 | . 1 . . . Recyclers Shooed . | . . . . . Parts Field Recycled . | . . . . . Retrieved Matter . | . . . . . Parts Self-Destructed . | . . . . . Prevented . | . . . . . Kills | -11 -10 -10 -10 -9 ------- Run | Scr Mat Min Exi Min Combat Hostiles Destroyed 24 | . 8 6 1 9 Guns 15 | . 8 6 1 . AOE 9 | . . . . 9 Classes Destroyed 11 | 2 4 2 1 2 Worker 3 | . 1 . . 2 Builder 1 | . . . . 1 Tunneler 4 | 4 . . . . Hauler 1 | . 1 . . . Recycler 1 | 1 . . . . Watcher 1 | . 1 . . . Swarmer 6 | . . 4 . 2 Grunt 9 | . 8 1 . . Sentry 1 | . . 1 . . Hunter 1 | . . . 1 . Assembled 7 | . . . . 7 Best Kill Streak 8 | 5 3 3 1 8 Combat Bots Only 7 | . 2 3 1 7 Max Kills in Single Turn 4 | 1 1 1 1 4 Gunslinging . | . . . . . Exploded 4 | . . . . 4 Melee . | . . . . . Uniques/NPCs Destroyed . | . . . . . Combat | -11 -10 -10 -10 -9 -------- Run | Scr Mat Min Exi Min Damage Taken 679 | . 312 151 . 216 Core 194 | . 111 53 . 30 Absorbed by Shields . | . . . . . Core Remaining (%) 100 | 100 . . . . Volleys Fired 69 | 9 37 11 6 6 Largest 2 | 2 2 2 2 1 Hottest 100 | 70 100 76 76 30 Shots Fired 130 | 18 72 22 12 6 Gun 122 | 18 70 22 12 . Cannon . | . . . . . Launcher 6 | . . . . 6 Special 2 | . 2 . . . Kinetic 61 | 9 35 11 6 . Thermal 63 | 9 37 11 6 . Explosive 6 | . . . . 6 Electromagnetic . | . . . . . Robot Hit Streak 25 | 5 25 10 10 13 Robot Miss Streak 2 | 2 2 1 . . Penetration Max . | . . . . . Secondary Targets 2 | . . 2 . . Max Gunslinging Chain 1 | . . 1 . . Shots Hit Robots 98 | 12 60 16 7 3 Core Hits 77 | 8 24 10 7 28 Critical Kills . | . . . . . Critical Parts Destroyed . | . . . . . Critical Strikes 7 | 1 4 2 . . Burn 7 | 1 4 2 . . Melee Attacks 5 | . 4 . 1 . Impact . | . . . . . Slashing 1 | . . . 1 . Piercing . | . . . . . Sneak Attacks 4 | . 4 . . . Combat Hostiles . | . . . . . Follow-up Attacks . | . . . . . Damage Inflicted 2111 | 137 680 223 194 877 Guns 1144 | 137 680 220 107 . Cannons . | . . . . . Explosions 869 | . . . . 869 Melee 87 | . . . 87 . Ramming 11 | . . 3 . 8 Kinetic 446 | 50 271 104 21 . Thermal 698 | 87 409 116 86 . Explosive 869 | . . . . 869 Electromagnetic . | . . . . . Impact . | . . . . . Slashing 87 | . . . 87 . Piercing . | . . . . . Highest Corruption . | . . . . . Average Corruption . | . . . . . Corruption Purged . | . . . . . Overload Shots . | . . . . . Overflow Damage 17 | . . . . 17 Projectiles . | . . . . . Explosions 17 | . . . . 17 Melee . | . . . . . Knockbacks . | . . . . . Impact . | . . . . . Kinetic . | . . . . . Secondary . | . . . . . Self-Inflicted Damage 18 | . . 1 . 17 Shots 1 | . . . . 1 Rammed 2 | . . 1 . 1 Targets Rammed 2 | . . 1 . 1 Kicked . | . . . . . Crushed . | . . . . . Highest Temperature 196 | 40 196 1 . . Average Temperature 54 | 21 62 1 . . Received Heat Transfer 299 | . 225 54 . 20 Siege Activations . | . . . . . Robots Corrupted . | . . . . . Combat Hostiles . | . . . . . Parts Fried . | . . . . . Impact Corruptions . | . . . . . Robots Melted . | . . . . . Combat Hostiles . | . . . . . Parts Melted 8 | . 5 3 . . Heat Transferred 2442 | 333 1443 444 222 . Parts Sabotaged . | . . . . . Parts Stolen . | . . . . . Parts Stripped . | . . . . . Power Chain Reactions . | . . . . . Missiles Intercepted . | . . . . . Alert | -11 -10 -10 -10 -9 ------- Run | Scr Mat Min Exi Min Peak Influence 264 | 25 215 264 . 63 Initial 13 | . 13 . . . Average 71 | 6 66 83 . 20 Maximum Alert Level 1 | . 1 1 . . Low Security (%) 97 | 100 97 97 . 100 Level 1 2 | . 2 2 . . Level 2 . | . . . . . Level 3 . | . . . . . Level 4 . | . . . . . Level 5 . | . . . . . High Security . | . . . . . Max Security . | . . . . . Squads Dispatched 1 | . 1 . . . Investigation 1 | . 1 . . . Extermination . | . . . . . Reinforcement . | . . . . . Assault . | . . . . . Garrison . | . . . . . Intercept . | . . . . . Construction Impeded . | . . . . . Haulers Reinforced . | . . . . . Active Scanning Responses . | . . . . . Cargo Convoy Interrupts . | . . . . . Stealth | -11 -10 -10 -10 -9 --------- Run | Scr Mat Min Exi Min Distress Signals . | . . . . . Communications Jammed . | . . . . . Distress Signals . | . . . . . Times Spotted 48 | . 16 12 . 20 Peak Tracking Total 15 | . 3 3 . 15 Tactical Retreats 1 | . 1 . . . Traps | -11 -10 -10 -10 -9 ------- Run | Scr Mat Min Exi Min Traps Triggered 1 | . 1 . . . Indirectly . | . . . . . Trap Hack Attempts . | . . . . . Triggered . | . . . . . Disarmed . | . . . . . Reprogrammed . | . . . . . Reused . | . . . . . Traps Extracted . | . . . . . Installed . | . . . . . Triggered . | . . . . . Machines | -11 -10 -10 -10 -9 ---------- Run | Scr Mat Min Exi Min Machines Disabled . | . . . . . Max in Single Turn . | . . . . . Machines Sabotaged . | . . . . . Garrisons Compromised . | . . . . . Overloaded Fab Kills . | . . . . . Hacking | -11 -10 -10 -10 -9 --------- Run | Scr Mat Min Exi Min Machines Accessed 3 | . 2 . 1 . Terminals 2 | . 2 . . . Fabricators . | . . . . . Repair Stations . | . . . . . Recycling Units . | . . . . . Scanalyzers . | . . . . . Garrison Access . | . . . . . Total Hacks 27 | . 4 . 23 . Successful 26 | . 3 . 23 . Failed 1 | . 1 . . . Catastrophic . | . . . . . Database Lockouts . | . . . . . Manual 4 | . 4 . . . Terminals 4 | . 4 . . . Fabricators . | . . . . . Repair Stations . | . . . . . Recycling Units . | . . . . . Scanalyzers . | . . . . . Garrison Access . | . . . . . Terminal Hacks 25 | . 2 . 23 . Record 23 | . . . 23 . Unreport Threat 1 | . 1 . . . Locate Traps 1 | . 1 . . . Fabricator Hacks . | . . . . . Repair Station Hacks . | . . . . . Recycling Unit Hacks . | . . . . . Scanalyzer . | . . . . . Garrison Access Hacks . | . . . . . Unauthorized Hacks 1 | . 1 . . . Terminals 1 | . 1 . . . Track 1 | . 1 . . . Fabricators . | . . . . . Repair Stations . | . . . . . Recycling Units . | . . . . . Scanalyzers . | . . . . . Garrison Access . | . . . . . Data Cores Recovered . | . . . . . Used . | . . . . . Hacking Detections 2 | . 2 . . . Full Trace Events . | . . . . . Feedback Events . | . . . . . Feedback Blocked . | . . . . . Robot Schematics Acquired . | . . . . . Robots Built . | . . . . . Authchips . | . . . . . Time . | . . . . . Total Robot Build Rating . | . . . . . Part Schematics Acquired . | . . . . . Parts Built . | . . . . . Authchips . | . . . . . Time . | . . . . . Total Part Build Rating . | . . . . . Parts Repaired . | . . . . . Time . | . . . . . Parts Recycled . | . . . . . Recycled Matter . | . . . . . Retrieved Matter . | . . . . . Retrieved Components . | . . . . . Parts Scanalyzed . | . . . . . Part Schematics Acquired . | . . . . . Parts Damaged . | . . . . . Bothacking | -11 -10 -10 -10 -9 ------------ Run | Scr Mat Min Exi Min Used RIF Installer . | . . . . . Robots Hacked 2 | . 2 . . . Non-combat 2 | . 2 . . . Combat . | . . . . . Robot Hacks Applied 3 | . 3 . . . parse_system 1 | . 1 . . . no_distress 1 | . 1 . . . find_recycling 1 | . 1 . . . Relay Couplers Released . | . . . . . Fabnet Peak Effective % . | . . . . . Robots Rewired . | . . . . . Allies Hacked . | . . . . . Hacks Repelled . | . . . . . Allies | -11 -10 -10 -10 -9 -------- Run | Scr Mat Min Exi Min Total Allies 5 | . . 5 . . Largest Group 5 | . . 5 4 3 Highest-Rated Group 88 | . . 88 71 40 Highest-Rated Ally 31 | . . 31 31 16 Total Orders . | . . . . . Ally Attacks 29 | . . 26 . 3 Total Damage 360 | . . 331 . 29 Kills 8 | . . 8 . . Allies Corrupted . | . . . . . Allies Melted . | . . . . . Intel | -11 -10 -10 -10 -9 ------- Run | Scr Mat Min Exi Min Robot Analysis Total . | . . . . . Derelict Logs Recovered 1 | . . 1 . . Drone Launches . | . . . . . Drone Recoveries . | . . . . . Exploration | -11 -10 -10 -10 -9 ------------- Run | Scr Mat Min Exi Min Turns Passed 3081 | 94 867 1232 782 106 Spaces Moved 2109 | 66 570 851 555 67 Core 5 | 5 . . . . Treads . | . . . . . Legs . | . . . . . Wheels 2104 | 61 570 851 555 67 Hover . | . . . . . Flight . | . . . . . Fastest Speed 50 | 50 80 135 135 135 Average Speed 127 | 79 113 135 135 135 Slowest Speed 135 | 100 135 135 135 135 Overloaded Moves . | . . . . . Propulsion Burnouts . | . . . . . Robots Hopped . | . . . . . Cave-ins Triggered . | . . . . . Exploration Rate (%) 60 | 4 85 99 90 24 Regions Visited 4 Branch Regions 3 Pre-discovered Areas 1 | . . . 1 . Known Exits Taken . | . . . . . Unknown Exits Taken 4 | 1 1 1 1 . Scrap Searched 4 | . . 3 . 1 Spaces Dug 2 | . 2 . . . Terrain Destroyed 60 | . 2 . . 58 Melee . | . . . . . Projectile 2 | . 2 . . . AOE 58 | . . . . 58 Terrain Rammed . | . . . . . Walls Destroyed . | . . . . . Machines Disabled . | . . . . . Actions | -11 -10 -10 -10 -9 --------- Run | Scr Mat Min Exi Min Total 2365 | 88 715 911 576 75 Wait 113 | . 68 42 3 . Move 2105 | 65 569 850 554 67 Hop . | . . . . . Pick Up 32 | 8 14 6 4 . Fast Attach 6 | 6 . . . . Attach 1 | . 1 . . . Detach . | . . . . . Swap 17 | . 12 1 3 1 Drop 14 | . 10 . 4 . Fire 69 | 9 37 11 6 6 Melee 5 | . 4 . 1 . Ram 2 | . . 1 . 1 Kick . | . . . . . Crush . | . . . . . Escape Stasis . | . . . . . Rewire 1 | . . . 1 . Trap . | . . . . . Miscellaneous . | . . . . . Route ------- -11/Scrapyard -10/Materials (discovered 4 exits: [*Mat x3] / [*Min]) -10/Mines (discovered 3 exits: [*Mat x2] / *Exi) -10/Exiles (discovered 2 exits: [*Min x2]) -9/Mines History --------- Turn | Location | Event 10 | -11/Scrapyard | Discovered new exit (range 16) 95 | -11/Scrapyard | Entered Materials 304 | -10/Materials | Build established: Mutant 454 | -10/Materials | Discovered new exit (range 13) 577 | -10/Materials | Discovered new exit (range 11) 846 | -10/Materials | Discovered new exit (range 11) 850 | -10/Materials | Discovered new exit (range 6) 962 | -10/Materials | Entered Mines 1216 | -10/Mines | Joined a pair of Derelicts in attacking an 0b10 outpost 1220 | -10/Mines | Core integrity fell below 50% 1300 | -10/Mines | Assisted by bots powering up and referring to "LRC-V3" 1530 | -10/Mines | Deemed a non-threat by the Exiles lab entrance 1531 | -10/Mines | Discovered new exit (range 5) 1570 | -10/Mines | Learned Materials terminal intel 1643 | -10/Mines | Discovered new exit (range 5) 1754 | -10/Mines | Discovered new exit (range 11) 2074 | -10/Mines | Found a hidden stash of uninstalled traps 2194 | -10/Mines | Entered Exiles 2194 | -10/Exiles | Found Exiles lab destroyed 2194 | -10/Exiles | Accompanied by 4 allies 2215 | -10/Exiles | Discovered new exit (range 15) 2224 | -10/Exiles | Led the pair of lost Derelicts to a safe place 2790 | -10/Exiles | Discovered new exit (range 12) 2863 | -10/Exiles | Learned location of Zion (-6) 2976 | -10/Exiles | Entered Mines 2976 | -9/Mines | Accompanied by 3 allies 2989 | -9/Mines | Met a Derelict bent on vengeance 3063 | -9/Mines | Assembled infested the area 3082 | -9/Mines | Self-destructed Last Messages --------------- 03070_ as-18491 destroyed. 03072_ Slammed into U-05 Engineer. 03075_ C-30 ARC bursts open, deploying its payload. 03075_ D-53 Grenadier unfolds itself. 03077_ Trooper 1b destroyed. 03077_ as-57397 destroyed. 03077_ as-56076 destroyed. 03077_ as-39985 destroyed. 03077_ U-05 Engineer destroyed. 03077_ Mercenary 1a destroyed. 03077_ as-36537 destroyed. 03077_ as-00428 destroyed. 03078_ as-66278 destroyed. 03079_ Trooper 1a destroyed. 03080_ U-05 Engineer destroyed. 03081_ as-44023 destroyed. 03081_ as-95627 destroyed. 03081_ as-30041 destroyed. 03081_ as-56354 destroyed. 03081_ as-46428 destroyed. Map ----- +----------------------------------------------------+ | ????????## #### ###### ##??? | | ?????????########??## ## #### #???? | | ????????????????????# ##??# #???? | | ????????????????????# ##???# #???? | | ????????????????????# # ####### #???? | | ????????????????????## ## #???? | | ?????????????????????## ### ########???? | | ??????????????????????####?## #??????????? | | ????????????????????????????# #??????????? | | ????????????????????????????# #??????????? | | ????????????????????????????# ######?????? | | ????????????????????????????# ##????? | | ??????????????????????????### ##???? | | ???????????????????????#### #???? | | ???????????????????????# ### #??? | | ?????????????????????#### ###??? #?? | | ????????????????????## = #?????? #?? | | ????????????????????# % # #??????? #?? | | ????????????????????# # ##???????? #?? | | ????????????????????# ###????????????? | | ????????????????????? ##????????????? | | ?????????????????????# d #????????????? | | ????????????????????## ! #????????????? | | ????????????????????# d #????????????? | | ?????????????????????# #????????????? | | ?????????????????????# @ #????????????? | | ?????????????? % #???????????? | | ??????????# #???????????? | | ??????????? % #???????????? | | ??????????? %=a ??????????? | | ??????????? % ####?????????? | | ???????????? a ????????????? | | ???????????? r % ???????????? | | ???????????? % ??????????? | | ????????????? ####??????????? | | ????????????? #####?????????????? | | ?????????????? ###??????????????????? | | ??????????????? ##?????????????????????? | | ???????????????? #???????????????????????? | | ??????????????????????????????????????????? | | ??????????????????????????????????????????? | | ??????????????????????????????????????????? | | ??????????????????????????????????????????? | | ??????????????????????????????????????????? | | ??????????????????????????????????????????? | | ??????????????????????????????????????????? | | ??????????????????????????????????????????? | | ??????????????????????????????????????????? | | ??????????????????????????????????????????? | | ??????????????????????????????????????????? | +----------------------------------------------------+ Best States ------------- Heat Dissipation 39 Energy Generation 12 Energy Capacity 265 Matter Stores 300 Matter Capacity 300 Sight Range 16 Terrain Scan Range 16 Terrain Scan Density 10 Resistance: KI 20 Resistance: TH 20 Resistance: EX 20 Resistance: EM 20 Resistance: I 20 Resistance: S 20 Resistance: P 20 Evasion (%) 44 Offensive Hacking 10 Item Schematics ----------------- None Robot Schematics ------------------ None Fabricated ------------ Nothing Alien Tech Used ----------------- None Achievements -------------- None Challenges ------------ None Game ------ Seed ChainSmartbombRay Manual? 0 Play Time 00:24:19 Cumulative 87.1 hours Start 2021.11.11 @ 21:34:58 End 2021.11.11 @ 21:58:25 Sessions 1 Manual Loads 0 Difficulty Adventurer Special Mode None Game No. 67 Rogue 64 Adventurer 3 Explorer 0 Win Type - Total 0 Types 0/0/0/0/0/0/0/0/0 Lore% 36 Gallery% 36 Achievement% 33 Wizard Run 0 Options --------- ASCII 0 Keyboard 0 Movement Mouse Keybinds 1 Fullscreen 1 Font 18/TerminusBold Map View 76x50 Tactical HUD 1 Map Filters NONE Filters NONE Steam 1 RUN: 5286e900-3e77-46d8-9b4a-01d7c1d264ee